bitfinex-derivatives/quotes_BTCF0:USTF0_20250106
["timestamp","ask_amount","ask_price","bid_price","bid_amount"]
[1736183724552,0.62974627,101990.0,101980.0,0.005]
[1736183726147,0.63966675,101990.0,101980.0,0.005]
[1736183730955,0.63966675,101990.0,101980.0,1.505]
[1736183732065,0.63966675,101990.0,101980.0,0.005]
[1736183735955,0.70826675,101990.0,101980.0,0.005]
[1736183736151,0.70826675,101990.0,101980.0,0.414816]
[1736183736152,0.12853248,101990.0,101980.0,0.414816]
[1736183736353,0.01092048,101990.0,101980.0,0.478816]
[1736183736549,0.10325475,101990.0,101980.0,0.545616]
[1736183736755,0.15226675,101990.0,101980.0,0.545616]
[1736183738260,0.15226675,101990.0,101980.0,0.414816]
[1736183739556,0.15226675,101990.0,101980.0,0.476716]
[1736183741461,0.15226675,101990.0,101980.0,0.414816]
[1736183741667,0.21446675,101990.0,101980.0,0.414816]
[1736183742061,0.12213248,101990.0,101980.0,0.414816]
[1736183742256,0.21446675,101990.0,101980.0,0.414816]
[1736183743261,0.15226675,101990.0,101980.0,0.414816]
[1736183743570,0.15226675,101990.0,101980.0,0.481616]
[1736183743962,0.05993248,101990.0,101980.0,0.481616]
[1736183744367,0.15226675,101990.0,101980.0,0.481616]
[1736183750076,0.15226675,101990.0,101980.0,0.414816]
[1736183750270,0.51306675,101990.0,101980.0,0.005]
[1736183750573,0.67130102,101990.0,101960.0,0.52578312]
[1736183750875,0.23368954,101970.0,101960.0,0.52578312]
[1736183751169,0.23368954,101970.0,101960.0,0.49512357]
[1736183752173,0.23368954,101970.0,101960.0,0.08463528]
[1736183752174,0.23468954,101970.0,101960.0,0.08463528]
[1736183752475,0.23468954,101970.0,101950.0,0.4922]
[1736183752476,0.049026,101960.0,101950.0,0.18043]
[1736183752672,0.14136027,101960.0,101950.0,0.54123]
[1736183752873,0.14136027,101960.0,101950.0,0.11453]
[1736183753080,0.50216027,101960.0,101940.0,0.82032129]
[1736183753268,0.14136527,101950.0,101940.0,0.409833]
[1736183755575,0.14236527,101950.0,101940.0,0.409833]
[1736183755768,0.14336527,101950.0,101940.0,0.409833]
[1736183758064,0.14336527,101950.0,101940.0,0.049033]
[1736183758474,0.59649954,101950.0,101940.0,0.049033]
[1736183758676,0.6741983,101950.0,101940.0,0.049033]
[1736183758879,0.7519673,101950.0,101930.0,0.47400835]
[1736183759082,0.09233427,101940.0,101930.0,0.41130835]
[1736183759381,0.09233427,101940.0,101930.0,0.47460835]
[1736183761383,0.23470454,101940.0,101920.0,0.049045]
[1736183761569,0.09233427,101930.0,101920.0,0.049045]
[1736183761771,0.09233427,101930.0,101920.0,0.409845]
[1736183762474,0.14137427,101930.0,101920.0,0.409845]
[1736183762880,0.14237427,101930.0,101920.0,0.409845]
[1736183763080,0.14337427,101930.0,101920.0,0.409845]
[1736183763474,0.50417427,101930.0,101920.0,0.049045]
[1736183764081,0.50417427,101930.0,101910.0,1.9246]
[1736183764275,0.50417427,101930.0,101910.0,0.473648]
[1736183764276,0.14137927,101920.0,101910.0,0.473648]
[1736183765680,0.14237927,101920.0,101910.0,0.473648]
[1736183766676,0.14337927,101920.0,101910.0,0.473648]
[1736183767477,0.14137127,101940.0,101910.0,0.95831654]
[1736183767478,0.049037,101940.0,101910.0,0.95831654]
[1736183767787,0.50306727,101950.0,101940.0,0.049036]
[1736183767980,0.14136727,101950.0,101940.0,0.409836]
[1736183768174,0.09233427,101950.0,101940.0,0.478136]
[1736183768371,0.09233427,101950.0,101940.0,1.978136]
[1736183768772,0.10227527,101950.0,101940.0,1.978136]
[1736183769381,0.15230627,101950.0,101940.0,0.478136]
[1736183770387,0.001,101950.0,101940.0,0.57047027]
[1736183770776,0.001,101950.0,101940.0,0.63367027]
[1736183772185,0.001,101950.0,101940.0,0.541336]
[1736183772576,0.14236527,101950.0,101940.0,0.541336]
[1736183772778,0.14236527,101950.0,101940.0,0.478136]
[1736183780089,0.14236527,101950.0,101940.0,0.409836]
[1736183780682,0.050031,101950.0,101940.0,0.409836]
[1736183780986,0.14236527,101950.0,101940.0,0.409836]
[1736183781891,0.001,101950.0,101940.0,0.50217027]
[1736183782294,0.001,101950.0,101940.0,0.409836]
[1736183783292,0.1512151,101960.0,101940.0,0.409836]
[1736183783483,0.1512151,101960.0,101950.0,0.3608]
[1736183783882,0.1512151,101960.0,101950.0,0.409831]
[1736183785287,0.1532151,101960.0,101950.0,0.409831]
[1736183785790,0.01185383,101960.0,101950.0,0.409831]
[1736183785984,0.54762888,101970.0,101960.0,0.049026]
[1736183786185,0.54762888,101970.0,101960.0,0.50216027]
[1736183786381,0.54762888,101970.0,101960.0,0.409826]
[1736183786792,0.49860688,101970.0,101960.0,0.409826]
[1736183786991,0.49860688,101970.0,101960.0,0.50216027]
[1736183787197,0.49860688,101970.0,101960.0,0.55956027]
[1736183787400,0.11279999,101980.0,101970.0,0.049021]
[1736183787694,0.20513426,101980.0,101970.0,0.409821]
[1736183788096,0.20513426,101980.0,101970.0,1.909821]
[1736183788601,0.21313426,101980.0,101970.0,1.909821]
[1736183789390,0.12979999,101980.0,101970.0,2.00215527]
[1736183789699,0.36362906,101980.0,101970.0,1.909821]
[1736183789895,0.26081006,101980.0,101970.0,2.00215527]
[1736183790090,0.25082907,101980.0,101970.0,2.15508954]
[1736183790292,0.25082907,101980.0,101970.0,2.06275527]
[1736183791099,0.45595281,101980.0,101970.0,2.06275527]
[1736183792294,0.22212374,101980.0,101970.0,2.06275527]
[1736183793802,0.21012374,101980.0,101970.0,2.06375527]
[1736183794103,0.21312374,101980.0,101970.0,2.06375527]
[1736183795708,0.21312374,101980.0,101970.0,1.971421]
[1736183796007,0.14935027,101980.0,101970.0,1.971421]
[1736183796208,0.14935027,101980.0,101970.0,1.910821]
[1736183796405,0.14935027,101980.0,101970.0,0.050021]
[1736183796702,0.51015027,101980.0,101970.0,0.001]
[1736183796898,0.51015027,101980.0,101970.0,0.050021]
[1736183797296,0.14935027,101980.0,101970.0,0.410821]
[1736183797802,0.057016,101980.0,101970.0,0.410821]
[1736183798009,0.057016,101980.0,101970.0,0.50315527]
[1736183798894,0.008,101980.0,101970.0,0.50315527]
[1736183799201,0.008,101980.0,101970.0,0.56195527]
[1736183799404,0.008,101980.0,101970.0,0.62435527]
[1736183800910,0.18381462,101980.0,101970.0,0.62435527]
[1736183802323,0.18381462,101980.0,101970.0,0.71668954]
[1736183802523,0.18381462,101980.0,101970.0,2.21668954]
[1736183802718,0.00147126,102000.0,101980.0,0.049015]
[1736183802918,0.00147126,102000.0,101990.0,0.86294627]
[1736183803223,0.05047826,102000.0,101990.0,0.770612]
[1736183803415,0.14281253,102000.0,101990.0,0.770612]
[1736183803617,0.14281253,102000.0,101990.0,0.409812]
[1736183803819,0.21211253,102000.0,101990.0,0.049012]
[1736183804122,0.38786018,102000.0,101990.0,0.409812]
[1736183804725,0.39765432,102000.0,101990.0,0.409812]
[1736183804923,0.31432005,102000.0,101990.0,0.409812]
[1736183805322,0.40665432,102000.0,101990.0,0.409812]
[1736183805626,0.22690667,102000.0,101990.0,0.409812]
[1736183806124,0.22190667,102000.0,101990.0,0.409812]
[1736183806324,0.21590667,102000.0,101990.0,0.409812]
[1736183806518,0.30824094,102000.0,101990.0,0.049012]
[1736183806928,0.21590667,102000.0,101990.0,0.049012]
[1736183807826,0.21290667,102000.0,101990.0,0.049012]
[1736183808128,0.21790667,102000.0,101990.0,0.049012]
[1736183808932,0.22590667,102000.0,101990.0,0.050012]
[1736183809429,0.22390667,102000.0,101990.0,0.050012]
[1736183809729,0.58470667,102000.0,101990.0,0.050012]
[1736183809926,1.03874094,102000.0,101970.0,0.04902]
[1736183810115,0.14135027,101980.0,101960.0,0.3608]
[1736183810316,0.16137508,101970.0,101960.0,1.909822]
[1736183810627,0.18795527,101970.0,101960.0,1.909822]
[1736183811021,0.28028954,101970.0,101960.0,1.549022]
[1736183811220,0.18795527,101970.0,101960.0,0.049022]
[1736183811727,0.39309088,101970.0,101960.0,0.049022]
[1736183812718,0.39409088,101970.0,101960.0,0.062022]
[1736183813115,0.44159088,101970.0,101960.0,0.062022]
[1736183813734,0.53392515,101970.0,101960.0,0.013]
[1736183814619,0.44159088,101970.0,101960.0,0.062026]
[1736183815322,0.53392515,101970.0,101960.0,0.062026]
[1736183816033,0.54382199,101970.0,101960.0,0.062026]
[1736183817229,0.54382199,101970.0,101960.0,0.422826]
[1736183818127,0.54382199,101970.0,101960.0,0.062026]
[1736183818430,0.90462199,101970.0,101960.0,0.013]
[1736183819927,0.81228772,101970.0,101960.0,0.013]
[1736183820137,0.45148772,101970.0,101960.0,0.062026]
[1736183820538,0.45148772,101970.0,101960.0,1.562026]
[1736183821036,0.54382199,101970.0,101960.0,1.562026]
[1736183821337,0.59152199,101970.0,101960.0,1.562026]
[1736183823137,0.74718638,101970.0,101960.0,0.013]
[1736183826424,0.29405211,101970.0,101960.0,0.062026]
[1736183826738,0.15225211,101970.0,101960.0,0.422826]
[1736183826932,0.15225211,101970.0,101960.0,0.515626]
[1736183827234,0.10323111,101970.0,101960.0,0.515626]
[1736183827439,0.01089684,101970.0,101960.0,0.515626]
[1736183828027,0.6011828,101970.0,101960.0,0.515626]
[1736183828537,0.50884853,101970.0,101960.0,0.515626]
[1736183828733,0.49895169,101970.0,101960.0,0.60796027]
[1736183828931,0.42545169,101970.0,101960.0,0.60796027]
[1736183829138,0.36687453,101970.0,101960.0,2.10796027]
[1736183829438,0.29137453,101970.0,101960.0,2.10796027]
[1736183830637,0.34639159,101990.0,101980.0,0.049016]
[1736183830839,0.35602905,101990.0,101980.0,0.770616]
[1736183831424,0.35602905,101990.0,101980.0,0.409816]
[1736183831635,0.35602905,101990.0,101980.0,0.770616]
[1736183832136,0.36102905,101990.0,101980.0,0.770616]
[1736183833430,0.26869478,101990.0,101980.0,0.770616]
[1736183833627,0.36402905,101990.0,101980.0,0.770616]
[1736183834942,0.40852905,101990.0,101980.0,0.770616]
[1736183837643,0.20348473,101990.0,101980.0,0.770616]
[1736183838741,0.11115046,101990.0,101980.0,0.770616]
[1736183838943,0.06213746,101990.0,101980.0,0.770616]
[1736183839538,0.06213746,101990.0,101980.0,2.270616]
[1736183839937,0.23793136,101990.0,101980.0,2.270616]
[1736183840138,0.33026563,101990.0,101980.0,2.270616]
[1736183840448,0.37927763,101990.0,101980.0,0.770616]
[1736183841041,0.37927763,101990.0,101980.0,0.409816]
[1736183841042,0.42577763,101990.0,101980.0,0.409816]
[1736183841844,0.24998373,101990.0,101980.0,0.409816]
[1736183845054,0.53175813,101990.0,101980.0,0.409816]
[1736183845552,0.049016,101980.0,101970.0,0.409818]
[1736183845737,0.14135027,101980.0,101970.0,0.409818]
[1736183845937,0.59448454,101980.0,101950.0,0.3608]
[1736183846248,0.14136027,101960.0,101950.0,0.049029]
[1736183846746,0.049031,101950.0,101940.0,0.41130514]
[1736183846941,0.14136527,101950.0,101940.0,0.41130514]
[1736183847142,0.18916527,101950.0,101940.0,0.41130514]
[1736183849054,0.19016527,101950.0,101940.0,0.42030514]
[1736183849956,0.098831,101950.0,101940.0,0.42730514]
[1736183850154,0.098831,101950.0,101940.0,0.51963941]
[1736183850452,0.051031,101950.0,101940.0,0.51963941]
[1736183850953,0.051031,101950.0,101940.0,0.42730514]
[1736183851755,0.06068974,101950.0,101940.0,0.42730514]
[1736183854043,0.15302401,101950.0,101940.0,0.42730514]
[1736183854449,0.19982401,101950.0,101940.0,0.42730514]
[1736183856050,0.10748974,101950.0,101940.0,0.61197368]
[1736183856656,0.10748974,101950.0,101940.0,0.51963941]
[1736183857648,0.10748974,101950.0,101940.0,0.42730514]
[1736183859556,0.19982401,101950.0,101940.0,0.42730514]
[1736183860149,0.24712401,101950.0,101940.0,0.42730514]
[1736183860747,0.06068974,101950.0,101940.0,0.42730514]
[1736183861051,0.01165874,101950.0,101940.0,0.52240514]
[1736183861252,0.002,101950.0,101940.0,0.61473941]
[1736183861560,0.002,101950.0,101940.0,0.70707368]
[1736183861760,0.002,101950.0,101940.0,0.61473941]
[1736183863952,0.002,101950.0,101940.0,2.11473941]
[1736183865259,0.002,101950.0,101940.0,0.5322742]
[1736183866565,0.09433427,101950.0,101940.0,0.5322742]
[1736183866955,0.09433427,101950.0,101940.0,0.52240514]
[1736183868263,0.09333427,101950.0,101940.0,0.51940514]
[1736183868762,0.09233427,101950.0,101940.0,0.51040514]
[1736183869064,0.001,101950.0,101940.0,0.51940514]
[1736183870062,0.09333427,101950.0,101940.0,0.51940514]
[1736183870258,0.10311933,101950.0,101940.0,0.51940514]
[1736183871164,0.01078506,101950.0,101940.0,0.51940514]
[1736183871861,0.01078506,101950.0,101940.0,0.51540514]
[1736183872055,0.10311933,101950.0,101940.0,0.51940514]
[1736183872563,0.10311933,101950.0,101940.0,0.42430514]
[1736183872765,0.14571933,101950.0,101940.0,0.42430514]
[1736183873968,0.13593427,101950.0,101940.0,0.42430514]
[1736183874462,0.13593427,101950.0,101940.0,1.92430514]
[1736183875062,0.13593427,101950.0,101940.0,0.42430514]
[1736183875564,0.13593427,101950.0,101940.0,1.92430514]
[1736183875755,0.13593427,101950.0,101940.0,0.42430514]
[1736183876171,0.31214042,101950.0,101940.0,0.42430514]
[1736183876371,0.31214042,101950.0,101940.0,1.92430514]
[1736183876669,0.17720615,101950.0,101940.0,2.01663941]
[1736183876969,0.06420615,101950.0,101940.0,2.10483941]
[1736183877165,0.06420615,101950.0,101940.0,2.01250514]
[1736183877561,0.23948284,101970.0,101950.0,0.049031]
[1736183877772,0.23948284,101970.0,101960.0,0.770626]
[1736183878763,0.24048284,101970.0,101960.0,0.770626]
[1736183878971,0.33681711,101970.0,101960.0,0.770626]
[1736183879767,0.38583811,101970.0,101960.0,0.770626]
[1736183880867,0.38783811,101970.0,101960.0,0.770626]
[1736183881270,0.24648284,101970.0,101960.0,0.770626]
[1736183881768,0.33881711,101970.0,101960.0,0.770626]
[1736183882369,0.24648284,101970.0,101960.0,0.770626]
[1736183884470,0.33881711,101970.0,101960.0,0.770626]
[1736183884772,0.38783811,101970.0,101960.0,0.049026]
[1736183885071,0.62221251,101970.0,101960.0,0.049026]
[1736183885871,0.62221251,101970.0,101960.0,0.409826]
[1736183887373,0.8278357,101970.0,101960.0,0.409826]
[1736183890277,0.8278357,101970.0,101960.0,0.049026]
[1736183890773,0.5934613,101970.0,101960.0,0.049026]
[1736183894779,0.38783811,101970.0,101960.0,0.049026]
[1736183895571,0.38783811,101970.0,101950.0,0.3608]
[1736183895879,0.1610865,101960.0,101950.0,0.409828]
[1736183896177,0.14136027,101960.0,101950.0,0.049028]
[1736183896678,0.049031,101950.0,101940.0,0.41130414]
[1736183896879,0.27846527,101950.0,101940.0,0.41130414]
[1736183898682,0.27946527,101950.0,101940.0,0.42030414]
[1736183898886,0.37179954,101950.0,101940.0,0.42030414]
[1736183899074,0.73259954,101950.0,101940.0,0.01047114]
[1736183899580,0.73259954,101950.0,101940.0,0.009]
[1736183899778,0.73259954,101950.0,101940.0,0.00646221]
[1736183901879,0.96697394,101950.0,101940.0,0.00646221]
[1736183903881,0.99622102,101950.0,101940.0,0.00646221]
[1736183904191,1.00582845,101950.0,101940.0,0.00646221]
[1736183906588,1.00582845,101950.0,101920.0,0.409843]
[1736183906589,0.04904,101930.0,101920.0,0.409843]
[1736183906784,0.14137427,101930.0,101920.0,0.409843]
[1736183906985,0.22707427,101930.0,101920.0,0.409843]
[1736183907686,0.26977427,101930.0,101920.0,0.409843]
[1736183907994,0.27077427,101930.0,101920.0,0.413843]
[1736183908890,0.27077427,101930.0,101920.0,0.415843]
[1736183909090,0.22807427,101930.0,101920.0,0.415843]
[1736183911089,0.23207427,101930.0,101920.0,0.411843]
[1736183911790,0.23207427,101930.0,101920.0,0.409843]
[1736183911997,0.23507427,101930.0,101920.0,0.409843]
[1736183912391,0.24506548,101930.0,101920.0,0.409843]
[1736183915088,0.15273121,101930.0,101920.0,0.409843]
[1736183915294,0.24506548,101930.0,101920.0,0.409843]
[1736183916793,0.049045,101920.0,101910.0,0.409847]
[1736183917000,0.23371354,101920.0,101910.0,0.409847]
[1736183917998,0.23371354,101920.0,101910.0,0.4271826]
[1736183918197,0.23371354,101920.0,101910.0,0.0173356]
[1736183918498,0.59451354,101920.0,101910.0,0.002]
[1736183918703,0.59551354,101920.0,101910.0,0.003]
[1736183922804,0.95721354,101920.0,101910.0,0.003]
[1736183924313,0.04905,101910.0,101900.0,0.1]
[1736183924509,0.72591854,101910.0,101900.0,0.1]
[1736183924810,0.72591854,101910.0,101880.0,0.409861]
[1736183925006,0.18466854,101890.0,101880.0,0.42520072]
[1736183925209,0.23372854,101890.0,101880.0,0.42520072]
[1736183925408,0.32282854,101890.0,101880.0,0.42520072]
[1736183925807,0.32282854,101890.0,101880.0,0.37613972]
[1736183926006,0.32282854,101890.0,101880.0,0.01533972]
[1736183926205,0.32282854,101890.0,101870.0,2.02863831]
[1736183926206,0.049065,101880.0,101870.0,2.00013831]
[1736183926404,0.23373354,101880.0,101870.0,0.50013831]
[1736183926607,0.23373354,101880.0,101870.0,0.51547964]
[1736183926805,0.23373354,101880.0,101870.0,0.42667964]
[1736183927105,0.23373354,101880.0,101870.0,0.37761364]
[1736183927612,0.59453354,101880.0,101870.0,0.01681364]
[1736183927913,0.59553354,101880.0,101870.0,0.00147231]
[1736183928110,0.59653354,101880.0,101850.0,0.81995486]
[1736183928311,0.23374254,101860.0,101850.0,0.17574765]
[1736183928500,0.23374254,101860.0,101850.0,0.19109216]
[1736183928706,0.23374254,101860.0,101850.0,0.53654765]
[1736183929520,0.23374254,101860.0,101850.0,0.3608]
[1736183929813,0.09333427,101860.0,101850.0,0.409879]
[1736183930026,0.09333427,101860.0,101850.0,0.454579]
[1736183930220,0.09333427,101860.0,101850.0,0.455579]
[1736183930717,0.10315123,101860.0,101850.0,0.455579]
[1736183930916,0.1954855,101860.0,101850.0,0.455579]
[1736183931114,0.10315123,101860.0,101850.0,0.455579]
[1736183931315,0.09333427,101860.0,101850.0,0.46992322]
[1736183931616,0.09433427,101860.0,101850.0,0.455579]
[1736183934117,0.09433427,101860.0,101850.0,1.955579]
[1736183934316,0.18666854,101860.0,101850.0,1.955579]
[1736183934918,0.18666854,101860.0,101850.0,1.97092296]
[1736183935311,0.18666854,101860.0,101850.0,0.455579]
[1736183935619,0.09433427,101860.0,101850.0,0.455579]
[1736183935819,0.09433427,101860.0,101850.0,1.955579]
[1736183936408,0.09433427,101860.0,101850.0,0.455579]
[1736183937126,0.09433427,101860.0,101850.0,1.955579]
[1736183937514,0.18469927,101880.0,101860.0,0.049074]
[1736183937714,0.10215425,101880.0,101870.0,0.770669]
[1736183937920,0.13493427,101890.0,101880.0,0.049065]
[1736183938115,0.09233427,101890.0,101880.0,0.409865]
[1736183938710,0.09380725,101900.0,101890.0,0.04906]
[1736183938916,0.09380725,101900.0,101890.0,1.90986]
[1736183939222,0.26806334,101910.0,101900.0,0.049055]
[1736183939424,0.26806334,101910.0,101900.0,0.409855]
[1736183939425,0.27781081,101910.0,101900.0,0.409855]
[1736183939819,0.41919508,101910.0,101900.0,0.3608]
[1736183940019,0.41919508,101910.0,101890.0,0.3608]
[1736183940020,0.049055,101900.0,101890.0,0.409858]
[1736183940221,0.18298927,101900.0,101890.0,0.409858]
[1736183941221,0.090655,101900.0,101890.0,0.409858]
[1736183941423,0.18398927,101900.0,101890.0,0.413858]
[1736183942326,0.22528927,101900.0,101890.0,0.413858]
[1736183944025,0.001,101900.0,101890.0,0.413858]
[1736183944231,0.001,101900.0,101890.0,0.50619227]
[1736183944432,0.14715213,101900.0,101890.0,0.455358]
[1736183944623,0.14715213,101900.0,101890.0,0.54769227]
[1736183946128,0.001,101900.0,101890.0,0.54769227]
[1736183947328,0.17672907,101900.0,101890.0,0.54769227]
[1736183947828,0.17672907,101900.0,101890.0,0.55765635]
[1736183949231,0.17672907,101900.0,101890.0,2.05765635]
[1736183950825,0.06726686,101900.0,101890.0,2.05765635]
[1736183952527,0.06726686,101900.0,101890.0,2.01615635]
[1736183952737,0.20865613,101900.0,101890.0,0.004]
[1736183953039,0.56945613,101900.0,101890.0,0.004]
[1736183953334,0.04906,101890.0,101870.0,0.3608]
[1736183953539,0.19582291,101880.0,101870.0,0.049069]
[1736183953729,0.22629927,101880.0,101870.0,0.409869]
[1736183954440,0.22629927,101880.0,101870.0,0.411869]
[1736183954735,0.37266863,101880.0,101870.0,0.005]
[1736183954938,0.8258029,101880.0,101870.0,0.005]
[1736183955739,0.049069,101870.0,101860.0,0.0505444]
[1736183955938,0.14140327,101870.0,101860.0,0.0505444]
[1736183956135,0.14140327,101870.0,101860.0,0.0014724]
[1736183956330,0.50220327,101870.0,101860.0,0.0014724]
[1736183956635,0.54370327,101870.0,101860.0,0.0014724]
[1736183957025,0.54470327,101870.0,101860.0,0.0014724]
[1736183957432,0.049074,101860.0,101850.0,0.049077]
[1736183957628,0.14140827,101860.0,101850.0,0.049077]
[1736183959131,0.50220827,101860.0,101850.0,0.049077]
[1736183959441,0.049084,101840.0,101830.0,0.409888]
[1736183959628,0.14141827,101840.0,101830.0,0.409888]
[1736183960037,0.18341827,101840.0,101830.0,0.409888]
[1736183960228,0.27575254,101840.0,101830.0,0.049088]
[1736183960432,0.22666854,101840.0,101820.0,0.36227298]
[1736183960627,0.24460767,101830.0,101820.0,0.41136398]
[1736183960837,0.23375754,101830.0,101820.0,0.41136398]
[1736183961236,0.59455754,101830.0,101820.0,0.00147298]
[1736183963028,0.049098,101810.0,101800.0,0.02299831]
[1736183963340,0.14143227,101810.0,101800.0,0.409903]
[1736183964541,0.14243227,101810.0,101800.0,0.409903]
[1736183964740,0.14243227,101810.0,101800.0,0.41005717]
[1736183965637,0.14343227,101810.0,101800.0,0.41005717]
[1736183965837,0.09433427,101810.0,101800.0,0.41005717]
[1736183966037,0.001,101810.0,101800.0,0.41005717]
[1736183966236,0.09333427,101810.0,101800.0,0.41005717]
[1736183967232,0.09333427,101810.0,101800.0,0.50239144]
[1736183967233,0.001,101810.0,101800.0,0.50239144]
[1736183967439,0.001,101810.0,101800.0,0.80239144]
[1736183968340,0.001,101810.0,101800.0,0.50239144]
[1736183968644,0.049094,101820.0,101810.0,0.049098]
[1736183968842,0.049094,101820.0,101810.0,0.409898]
[1736183969244,0.049094,101820.0,101810.0,1.909898]
[1736183969638,0.14142827,101820.0,101810.0,0.409898]
[1736183969837,0.14242827,101820.0,101810.0,0.409898]
[1736183970546,0.050094,101820.0,101810.0,0.409898]
[1736183970749,0.14242827,101820.0,101810.0,0.409898]
[1736183974048,0.23476254,101820.0,101810.0,0.409898]
[1736183974638,0.14242827,101820.0,101810.0,0.409898]
[1736183975143,0.049098,101810.0,101800.0,0.41005617]
[1736183975338,0.26563227,101810.0,101800.0,0.41005617]
[1736183976438,0.26563227,101810.0,101800.0,0.41105617]
[1736183976834,0.26663227,101810.0,101800.0,0.41805617]
[1736183977744,0.26663227,101810.0,101800.0,0.36895417]
[1736183977950,0.26663227,101810.0,101800.0,0.05725717]
[1736183978144,0.26663227,101810.0,101800.0,0.41805717]
[1736183979439,0.22413227,101810.0,101800.0,0.41805717]
[1736183980041,0.17503427,101810.0,101800.0,0.41805717]
[1736183980348,0.13463427,101810.0,101800.0,0.41805717]
[1736183980549,0.09333427,101810.0,101800.0,0.41805717]
[1736183981352,0.14243227,101810.0,101800.0,0.41805717]
[1736183981545,0.14243227,101810.0,101800.0,0.05725717]
[1736183982257,0.14243227,101810.0,101800.0,0.05625717]
[1736183982549,0.14243227,101810.0,101800.0,0.05525717]
[1736183982550,0.15103589,101810.0,101800.0,0.05525717]
[1736183983141,0.15503589,101810.0,101800.0,0.41505717]
[1736183983648,0.16203589,101810.0,101800.0,0.41105717]
[1736183984347,0.16203589,101810.0,101800.0,0.05025717]
[1736183984554,0.61517016,101810.0,101800.0,0.00115417]
[1736183984849,0.61517016,101810.0,101800.0,1e-08]
[1736183985055,0.61517016,101810.0,101770.0,0.85177786]
[1736183985056,0.049113,101780.0,101770.0,0.86069286]
[1736183985350,0.16092341,101790.0,101780.0,0.049113]
[1736183985543,0.14144427,101790.0,101780.0,0.409913]
[1736183986140,0.09233427,101790.0,101780.0,0.409913]
[1736183986539,0.14143827,101800.0,101790.0,0.049108]
[1736183986743,0.14143827,101800.0,101790.0,0.409908]
[1736183987145,0.28807485,101800.0,101790.0,0.409908]
[1736183987345,0.14663658,101800.0,101790.0,0.409908]
[1736183987552,0.14663658,101800.0,101790.0,0.452808]
[1736183988255,0.2053392,101810.0,101800.0,0.049103]
[1736183988443,0.2053392,101810.0,101800.0,0.409903]
[1736183989450,0.2123392,101810.0,101800.0,0.409903]
[1736183989655,0.07070262,101810.0,101800.0,0.409903]
[1736183990557,0.3290978,101810.0,101800.0,0.409903]
[1736183990847,0.30967347,101810.0,101800.0,0.409903]
[1736183991650,0.1682402,101810.0,101800.0,0.409903]
[1736183991849,0.15863658,101810.0,101800.0,0.451603]
[1736183992049,0.15863658,101810.0,101800.0,0.54393727]
[1736183992357,0.15863658,101810.0,101800.0,2.04393727]
[1736183992553,0.15863658,101810.0,101800.0,1.951603]
[1736183994648,0.15863658,101810.0,101800.0,0.451603]
[1736183995053,0.15263658,101810.0,101800.0,0.456603]
[1736183995454,0.14763658,101810.0,101800.0,0.55093727]
[1736183995657,0.02462142,101810.0,101800.0,1.33513727]
[1736183995857,0.16181049,101820.0,101810.0,0.049098]
[1736183996050,0.06069149,101820.0,101810.0,0.63616654]
[1736183996353,4.9e-07,101820.0,101810.0,0.63616654]
[1736183996946,4.9e-07,101820.0,101810.0,0.63716654]
[1736183997957,0.09294847,101860.0,101850.0,0.049079]
[1736183998161,0.09294847,101860.0,101850.0,0.50221327]
[1736183998359,0.09294847,101860.0,101850.0,0.409879]
[1736183999062,0.11235244,101860.0,101850.0,0.409879]
[1736183999457,0.10292334,101860.0,101850.0,0.409879]
[1736184000652,0.19525761,101860.0,101850.0,0.409879]
[1736184001058,0.19525761,101860.0,101850.0,0.413879]
[1736184001453,0.20025761,101860.0,101850.0,0.413879]
[1736184001665,0.20725761,101860.0,101850.0,0.410879]
[1736184002571,0.20725761,101860.0,101850.0,0.50321327]
[1736184002572,0.11492334,101860.0,101850.0,0.50321327]
[1736184002761,0.11492334,101860.0,101850.0,0.410879]
[1736184003662,0.01347347,101860.0,101850.0,0.50321327]
[1736184004468,0.00043,101870.0,101860.0,0.049074]
[1736184004660,0.00043,101870.0,101860.0,0.54400827]
[1736184004874,0.00043,101870.0,101860.0,0.58760827]
[1736184005670,0.00543,101870.0,101860.0,0.58760827]
[1736184005870,0.01243,101870.0,101860.0,0.58860827]
[1736184006565,0.061069,101870.0,101860.0,0.410874]
[1736184006761,0.012,101870.0,101860.0,0.50320827]
[1736184007167,0.15340327,101870.0,101860.0,0.410874]
[1736184007373,0.19380327,101870.0,101860.0,0.410874]
[1736184007569,0.0524,101870.0,101860.0,0.50320827]
[1736184007975,0.012,101870.0,101860.0,0.50320827]
[1736184010981,0.105,101900.0,101890.0,0.50219427]
[1736184011783,0.1,101900.0,101890.0,0.50619427]
[1736184012176,0.1,101900.0,101890.0,0.50819427]
[1736184012480,0.04,101910.0,101900.0,0.049055]
[1736184012776,0.087,101920.0,101910.0,0.04905]
[1736184012980,0.087,101920.0,101910.0,0.40985]
[1736184013372,0.043,101920.0,101910.0,0.50218427]
[1736184013574,0.19326344,101930.0,101920.0,0.049045]
[1736184013575,0.04218,101930.0,101920.0,0.049045]
[1736184013774,0.04218,101930.0,101920.0,0.409845]
[1736184013975,0.13451427,101930.0,101920.0,0.409845]
[1736184014283,0.18355427,101930.0,101920.0,0.409845]
[1736184015478,0.19255427,101930.0,101920.0,0.410845]
[1736184015673,0.19255427,101930.0,101920.0,0.411845]
[1736184017081,0.19255427,101930.0,101920.0,0.410845]
[1736184017275,0.19255427,101930.0,101920.0,0.411845]
[1736184017783,0.55335427,101930.0,101920.0,0.002]
[1736184017973,0.55335427,101930.0,101920.0,0.051045]
[1736184018174,0.19255427,101930.0,101920.0,0.051045]
[1736184018477,0.19255427,101930.0,101920.0,0.411845]
[1736184019072,0.05118,101930.0,101920.0,0.50417927]
[1736184020775,0.00938,101930.0,101920.0,0.50417927]
[1736184021171,0.00038,101930.0,101920.0,0.50217927]
[1736184021374,0.00038,101930.0,101920.0,0.50917927]
[1736184021874,0.00038,101930.0,101920.0,2.00917927]
[1736184022084,0.00038,101930.0,101920.0,0.417845]
[1736184022085,0.14175427,101930.0,101920.0,0.417845]
[1736184022880,0.14137427,101930.0,101920.0,0.417845]
[1736184023182,0.14137427,101930.0,101920.0,0.3718]
[1736184023382,0.14137427,101930.0,101920.0,0.420845]
[1736184023575,0.14137427,101930.0,101920.0,0.409845]
[1736184023877,0.14137427,101930.0,101920.0,0.411845]
[1736184024575,0.14737427,101930.0,101920.0,0.410845]
[1736184024775,0.05504,101930.0,101920.0,0.410845]
[1736184024979,0.18049484,101930.0,101920.0,0.410845]